fUSD/lending_fUSD_20250616
["ID","MTS","AMOUNT","RATE_DAILY","PERIOD"]
[366120300,1750073471949,-490.0,0.00016767,2]
[366120301,1750073471959,-490.0,0.00016767,2]
[366120302,1750073471968,-490.0,0.00016767,2]
[366120303,1750073471978,-490.0,0.00016767,2]
[366120304,1750073471987,-151.0,0.00016767,2]
[366120305,1750073471997,-151.0,0.00016767,2]
[366120306,1750073472007,-675.85,0.00016767,2]
[366120307,1750073472017,-490.0,0.00016767,2]
[366120308,1750073472026,-1278.21,0.00016767,2]
[366120309,1750073472036,-1248.71,0.00016767,2]
[366120310,1750073472045,-490.0,0.00016767,2]
[366120311,1750073472056,-660.48,0.00016767,2]
[366120312,1750073472065,-888.79,0.00016767,2]
[366120313,1750073472075,-490.0,0.00016767,2]
[366120314,1750073472085,-862.38,0.00016767,2]
[366120315,1750073472095,-490.0,0.00016767,2]
[366120316,1750073472105,-490.0,0.00016767,2]
[366120317,1750073472115,-490.0,0.00016767,2]
[366120318,1750073472124,-490.0,0.00016767,2]
[366120319,1750073472134,-568.0,0.00016767,2]
[366120320,1750073472144,-490.0,0.00016767,2]
[366120321,1750073472154,-524.29,0.00016767,2]
[366120322,1750073472164,-490.0,0.00016767,2]
[366120323,1750073472175,-490.0,0.00016767,2]
[366120324,1750073472184,-490.0,0.00016767,2]
[366120325,1750073472194,-490.0,0.00016767,2]
[366120326,1750073472204,-878.34,0.00016767,2]
[366120327,1750073472214,-220.426329,0.00016767,2]
[366120328,1750073472223,-220.426329,0.00016767,2]
[366120329,1750073472234,-1800.01,0.00016767,2]
[366120330,1750073472244,-490.0,0.00016767,2]
[366120331,1750073472254,-977.91,0.00016767,2]
[366120332,1750073472264,-152.8827953,0.00016767,2]
[366120333,1750073472274,-220.426329,0.00016767,2]
[366120334,1750073472284,-220.426328,0.00016767,2]
[366120335,1750073472293,-866.69,0.00016767,2]
[366120336,1750073472303,-490.0,0.00016767,2]
[366120337,1750073472314,-1516.01,0.00016767,2]
[366120338,1750073472325,-490.0,0.00016767,2]
[366120339,1750073472336,-490.0,0.00016767,2]
[366120340,1750073472346,-1851.71,0.00016767,2]
[366120341,1750073472356,-843.66,0.00016767,2]
[366120342,1750073472366,-490.0,0.00016767,2]
[366120343,1750073472376,-490.0,0.00016767,2]
[366120344,1750073472385,-490.0,0.00016767,2]
[366120345,1750073472395,-1131.16,0.00016767,2]
[366120346,1750073472407,-1116.93,0.00016767,2]
[366120347,1750073472419,-980.18,0.00016767,2]
[366120348,1750073472429,-573.42,0.00016767,2]
[366120349,1750073472439,-490.0,0.00016767,2]
[366120350,1750073472449,-843.36,0.00016767,2]
[366120351,1750073472459,-1422.89,0.00016767,2]
[366120352,1750073472469,-490.0,0.00016767,2]
[366120353,1750073472479,-490.0,0.00016767,2]
[366120354,1750073472489,-490.0,0.00016767,2]
[366120355,1750073472499,-2092.87,0.00016767,2]
[366120356,1750073472510,-400.9071429,0.00016767,2]
[366120357,1750073472520,-1203.4,0.00016767,2]
[366120358,1750073472530,-672.91,0.00016767,2]
[366120359,1750073472539,-516.55,0.00016767,2]
[366120360,1750073472549,-1086.6,0.00016767,2]
[366120361,1750073472559,-1218.92,0.00016767,2]
[366120362,1750073472568,-519.22837315,0.00016767,2]
[366120363,1750073472578,-490.0,0.00016767,2]
[366120364,1750073472588,-302.942155,0.00016767,2]
[366120365,1750073472598,-302.942155,0.00016767,2]
[366120366,1750073472608,-221.853486,0.00016767,2]
[366120367,1750073472618,-221.853486,0.00016767,2]
[366120368,1750073472628,-302.942155,0.00016767,2]
[366120369,1750073472638,-302.942151,0.00016767,2]
[366120370,1750073472648,-490.0,0.00016767,2]
[366120371,1750073472658,-490.0,0.00016767,2]
[366120372,1750073472670,-425.595712,0.00016767,2]
[366120373,1750073472680,-655.46,0.00016767,2]
[366120374,1750073472690,-425.595712,0.00016767,2]
[366120375,1750073472700,-221.853486,0.00016767,2]
[366120376,1750073472710,-221.853484,0.00016767,2]
[366120377,1750073472719,-501.55,0.00016767,2]
[366120378,1750073472729,-1813.9,0.00016767,2]
[366120379,1750073472739,-699.93,0.00016767,2]
[366120380,1750073472748,-754.64,0.00016767,2]
[366120381,1750073472759,-756.4,0.00016767,2]
[366120382,1750073472769,-425.595712,0.00016767,2]
[366120383,1750073472779,-425.595717,0.00016767,2]
[366120384,1750073472788,-490.0,0.00016767,2]
[366120385,1750073472799,-1206.92,0.00016767,2]
[366120386,1750073472808,-782.7,0.00016767,2]
[366120387,1750073472818,-490.0,0.00016767,2]
[366120388,1750073472827,-490.0,0.00016767,2]
[366120389,1750073472836,-1168.11,0.00016767,2]
[366120390,1750073472847,-504.7,0.00016767,2]
[366120391,1750073472857,-1157.09,0.00016767,2]
[366120392,1750073472867,-490.0,0.00016767,2]
[366120393,1750073472877,-614.28,0.00016767,2]
[366120394,1750073472886,-1336.1,0.00016767,2]
[366120395,1750073472896,-495.59,0.00016767,2]
[366120396,1750073472906,-1106.81,0.00016767,2]
[366120397,1750073472917,-1303.22,0.00016767,2]
[366120398,1750073472927,-490.0,0.00016767,2]
[366120399,1750073472936,-587.02,0.00016767,2]
[366120400,1750073472946,-1629.62,0.00016767,2]
[366120401,1750073472956,-583.33,0.00016767,2]
[366120402,1750073472966,-1111.01,0.00016767,2]
[366120403,1750073472976,-805.81,0.00016767,2]
[366120404,1750073472986,-490.86,0.00016767,2]
[366120405,1750073472996,-490.0,0.00016767,2]
[366120406,1750073473006,-490.0,0.00016767,2]
[366120407,1750073473015,-490.0,0.00016767,2]
[366120408,1750073473025,-490.0,0.00016767,2]
[366120409,1750073473035,-490.0,0.00016767,2]
[366120410,1750073473044,-526.93,0.00016767,2]
[366120411,1750073473054,-490.0,0.00016767,2]
[366120412,1750073473064,-490.0,0.00016767,2]
[366120413,1750073473073,-513.43,0.00016767,2]
[366120414,1750073473083,-703.91,0.00016767,2]
[366120415,1750073473093,-490.0,0.00016767,2]
[366120416,1750073473103,-1388.45,0.00016767,2]
[366120417,1750073473113,-490.0,0.00016767,2]
[366120418,1750073473123,-1093.15,0.00016767,2]
[366120419,1750073473132,-490.0,0.00016767,2]
[366120420,1750073473141,-490.0,0.00016767,2]
[366120421,1750073473151,-1036.83,0.00016767,2]
[366120422,1750073473161,-932.92,0.00016767,2]
[366120423,1750073473171,-1043.06,0.00016767,2]
[366120424,1750073473181,-490.0,0.00016767,2]
[366120425,1750073473190,-1008.32,0.00016767,2]
[366120426,1750073473200,-8743.58,0.00016767,2]
[366120427,1750073473209,-490.0,0.00016767,2]
[366120428,1750073473219,-805.86,0.00016767,2]
[366120429,1750073473228,-958.42,0.00016767,2]
[366120430,1750073473238,-575.35,0.00016767,2]
[366120431,1750073473248,-753.27,0.00016767,2]
[366120432,1750073473257,-570.99,0.00016767,2]
[366120433,1750073473267,-688.78,0.00016767,2]
[366120434,1750073473276,-1466.03,0.00016767,2]
[366120435,1750073473286,-19848.8,0.00016767,2]
[366120436,1750073473295,-1625.75,0.00016767,2]
[366120437,1750073473305,-490.0,0.00016767,2]
[366120438,1750073473314,-924.53,0.00016767,2]
[366120439,1750073473324,-1221.97,0.00016767,2]
[366120440,1750073473336,-8879.42,0.00016767,2]
[366120441,1750073473345,-490.000001,0.00016767,2]
[366120442,1750073473354,-1180.0,0.00016767,2]
[366120443,1750073473364,-1592.24,0.00016767,2]
[366120444,1750073473374,-1874.53,0.00016767,2]
[366120445,1750073473383,-1319.95,0.00016767,2]
[366120446,1750073473392,-320.000609,0.00016767,2]
[366120447,1750073473402,-1204.22,0.00016767,2]
[366120448,1750073473411,-3445.94,0.00016767,2]
[366120449,1750073473422,-1547.91,0.00016767,2]
[366120450,1750073473431,-490.0,0.00016767,2]
[366120451,1750073473440,-3420.5,0.00016767,2]
[366120452,1750073473450,-320.000615,0.00016767,2]
[366120453,1750073473459,-2045.08,0.00016767,2]
[366120454,1750073473468,-490.0,0.00016767,2]
[366120455,1750073473478,-490.0,0.00016767,2]
[366120456,1750073473487,-707.12,0.00016767,2]
[366120457,1750073473496,-5270.49,0.00016767,2]
[366120458,1750073473505,-2393.72,0.00016767,2]
[366120459,1750073473515,-151.0,0.00016767,2]
[366120460,1750073473524,-151.0,0.00016767,2]
[366120461,1750073473534,-490.0,0.00016767,2]
[366120462,1750073473543,-490.0,0.00016767,2]
[366120463,1750073473553,-648.64,0.00016767,2]
[366120464,1750073473562,-1697.0,0.00016767,2]
[366120465,1750073473571,-490.0,0.00016767,2]
[366120466,1750073473685,-1864.25,0.00016767,2]
[366120467,1750073473694,-490.0,0.00016767,2]
[366120468,1750073473703,-1281.31,0.00016767,2]
[366120469,1750073473712,-625.28,0.00016767,2]
[366120470,1750073473722,-1059.09,0.00016767,2]
[366120471,1750073473731,-490.0,0.00016767,2]
[366120472,1750073473740,-151.0,0.00016767,2]
[366120473,1750073473750,-151.0,0.00016767,2]
[366120474,1750073473758,-3975.05,0.00016767,2]
[366120475,1750073473768,-902.81,0.00016767,2]
[366120476,1750073473776,-686.46,0.00016767,2]
[366120477,1750073473786,-822.27,0.00016767,2]
[366120478,1750073473795,-189.4070775,0.00016767,2]
[366120479,1750073473804,-1093.15,0.00016767,2]
[366120480,1750073473813,-216.008136,0.00016767,2]
[366120481,1750073473822,-1022.47,0.00016767,2]
[366120482,1750073473831,-1031.95,0.00016767,2]
[366120483,1750073473840,-216.008136,0.00016767,2]
[366120484,1750073473850,-2800.1,0.00016767,2]
[366120485,1750073473859,-490.0,0.00016767,2]
[366120486,1750073473868,-584.07,0.00016767,2]
[366120487,1750073473877,-490.0,0.00016767,2]
[366120488,1750073473886,-490.0,0.00016767,2]
[366120489,1750073473895,-1458.81,0.00016767,2]
[366120490,1750073473904,-216.008136,0.00016767,2]
[366120491,1750073473913,-216.00814,0.00016767,2]
[366120492,1750073473923,-151.0,0.00016767,2]
[366120493,1750073473933,-151.0,0.00016767,2]
[366120494,1750073473942,-925.96,0.00016767,2]
[366120495,1750073473952,-490.0,0.00016767,2]
[366120496,1750073473961,-892.09,0.00016767,2]
[366120497,1750073473970,-490.0,0.00016767,2]
[366120498,1750073473979,-2055.06,0.00016767,2]
[366120499,1750073473989,-490.0,0.00016767,2]
[366120500,1750073473998,-490.0,0.00016767,2]
[366120501,1750073474008,-490.0,0.00016767,2]
[366120502,1750073474017,-3780.68,0.00016767,2]
[366120503,1750073474029,-199.703375,0.00016767,2]
[366120504,1750073474039,-199.703375,0.00016767,2]
[366120505,1750073474048,-1207.63,0.00016767,2]
[366120506,1750073474057,-199.703375,0.00016767,2]
[366120507,1750073474069,-199.703384,0.00016767,2]
[366120508,1750073474079,-2934.41,0.00016767,2]
[366120509,1750073474089,-257.544191,0.00016767,2]
[366120510,1750073474098,-1734.49,0.00016767,2]
[366120511,1750073474108,-490.0,0.00016767,2]
[366120512,1750073474117,-490.0,0.00016767,2]
[366120513,1750073474127,-1325.05,0.00016767,2]
[366120514,1750073474136,-490.0,0.00016767,2]
[366120515,1750073474145,-807.28,0.00016767,2]
[366120516,1750073474154,-15470.1,0.00016767,2]
[366120517,1750073474164,-7433.18,0.00016767,2]
[366120518,1750073474175,-490.0,0.00016767,2]
[366120519,1750073474184,-6096.92,0.00016767,2]
[366120520,1750073474194,-1316.46,0.00016767,2]
[366120521,1750073474203,-490.0,0.00016767,2]
[366120522,1750073474213,-1397.86,0.00016767,2]
[366120523,1750073474223,-490.0,0.00016767,2]
[366120524,1750073474232,-500.84,0.00016767,2]
[366120525,1750073474241,-490.0,0.00016767,2]
[366120526,1750073474250,-4541.62,0.00016767,2]
[366120527,1750073474260,-636.47,0.00016767,2]
[366120528,1750073474270,-1128.3,0.00016767,2]
[366120529,1750073474280,-1000.0,0.00016767,2]
[366120530,1750073474289,-1000.0,0.00016767,2]
[366120531,1750073474298,-3284.74,0.00016767,2]
[366120532,1750073474308,-1000.0,0.00016767,2]
[366120533,1750073474317,-1000.0,0.00016767,2]
[366120534,1750073474328,-1000.0,0.00016767,2]
[366120535,1750073474338,-3728.27,0.00016767,2]
[366120536,1750073474347,-1000.0,0.00016767,2]
[366120537,1750073474356,-1000.0,0.00016767,2]
[366120538,1750073474365,-1000.0,0.00016767,2]
[366120539,1750073474376,-490.0,0.00016767,2]
[366120540,1750073474385,-1000.0,0.00016767,2]
[366120541,1750073474394,-1000.0,0.00016767,2]
[366120542,1750073474404,-508.87,0.00016767,2]
[366120543,1750073474413,-771.16,0.00016767,2]
[366120544,1750073474424,-490.0,0.00016767,2]
[366120545,1750073474433,-873.59,0.00016767,2]
[366120546,1750073474442,-636.48,0.00016767,2]
[366120547,1750073474451,-3154.7,0.00016767,2]
[366120548,1750073474460,-1268.27,0.00016767,2]
[366120549,1750073474470,-13515.53,0.00016767,2]
[366120550,1750073474479,-866.45,0.00016767,2]
[366120551,1750073474488,-490.0,0.00016767,2]
[366120552,1750073474497,-1930.8881615,0.00016767,2]
[366120553,1750073475098,-925.2218385,0.00016767,2]
[366120554,1750073475107,-933.53,0.00016767,2]
[366120555,1750073475117,-490.0,0.00016767,2]
[366120556,1750073475128,-490.0,0.00016767,2]
[366120557,1750073475138,-490.0,0.00016767,2]
[366120558,1750073475147,-3685.08,0.00016767,2]
[366120559,1750073475157,-785.02,0.00016767,2]
[366120560,1750073475166,-1489.61,0.00016767,2]
[366120561,1750073475179,-1979.87,0.00016767,2]
[366120562,1750073475188,-928.45,0.00016767,2]
[366120563,1750073475198,-490.0,0.00016767,2]
[366120564,1750073475207,-4534.64,0.00016767,2]
[366120565,1750073475216,-8839.01,0.00016767,2]
[366120566,1750073475226,-1020.06,0.00016767,2]
[366120567,1750073475235,-1310.12,0.00016767,2]
[366120568,1750073475245,-682.12,0.00016767,2]
[366120569,1750073475254,-2298.37,0.00016767,2]
[366120570,1750073475264,-490.0,0.00016767,2]
[366120571,1750073475273,-852.06,0.00016767,2]
[366120572,1750073475282,-506.02,0.00016767,2]
[366120573,1750073475291,-1720.83,0.00016767,2]
[366120574,1750073475300,-2414.02,0.00016767,2]
[366120575,1750073475311,-1000.0,0.00016767,2]
[366120576,1750073475320,-1000.0,0.00016767,2]
[366120577,1750073475333,-1000.0,0.00016767,2]
[366120578,1750073475342,-1000.0,0.00016767,2]
[366120579,1750073475351,-1000.0,0.00016767,2]
[366120580,1750073475360,-1000.0,0.00016767,2]
[366120581,1750073475371,-1824.45,0.00016767,2]
[366120582,1750073475380,-1000.0,0.00016767,2]
[366120583,1750073475390,-151.0,0.00016767,2]
[366120584,1750073475399,-1000.0,0.00016767,2]
[366120585,1750073475413,-1000.0,0.00016767,2]
[366120586,1750073475426,-1000.0,0.00016767,2]
[366120587,1750073475436,-1709.7,0.00016767,2]
[366120588,1750073475445,-1686.95,0.00016767,2]
[366120589,1750073475455,-1556.15,0.00016767,2]
[366120590,1750073475464,-490.0,0.00016767,2]
[366120591,1750073475473,-759.35,0.00016767,2]
[366120592,1750073475482,-529.59,0.00016767,2]
[366120593,1750073475492,-1299.84,0.00016767,2]
[366120594,1750073475502,-1475.98,0.00016767,2]
[366120595,1750073475511,-3767.53,0.00016767,2]
[366120596,1750073475521,-490.0,0.00016767,2]
[366120597,1750073475530,-1729.11,0.00016767,2]
[366120598,1750073475539,-490.0,0.00016767,2]
[366120599,1750073475548,-1173.71,0.00016767,2]
[366120600,1750073475558,-490.0,0.00016767,2]
[366120601,1750073475567,-1109.18,0.00016767,2]
[366120602,1750073475576,-1453.01,0.00016767,2]
[366120603,1750073475585,-490.0,0.00016767,2]
[366120604,1750073475595,-4250.71,0.00016767,2]
[366120605,1750073475604,-1989.15,0.00016767,2]
[366120606,1750073475614,-2132.24,0.00016767,2]
[366120607,1750073475623,-831.82,0.00016767,2]
[366120608,1750073475632,-490.0,0.00016767,2]
[366120609,1750073475641,-490.0,0.00016767,2]
[366120610,1750073475650,-3287.58,0.00016767,2]
[366120611,1750073475660,-490.0,0.00016767,2]
[366120612,1750073475672,-1031.64,0.00016767,2]
[366120613,1750073475681,-1211.69147,0.00016767,2]
[366120614,1750073475690,-2163.56,0.00016767,2]
[366120615,1750073475699,-1211.69147,0.00016767,2]
[366120616,1750073475708,-5171.7,0.00016767,2]
[366120617,1750073475717,-1083.66,0.00016767,2]
[366120618,1750073475727,-2009.85,0.00016767,2]
[366120619,1750073475736,-1450.57183044,0.00016767,2]
[366120620,1750073475753,-259.59816956,0.00016767,2]
[366120621,1750073475762,-490.0,0.00016767,2]
[366120622,1750073475771,-1958.5,0.00016767,2]
[366120623,1750073475781,-1211.69147,0.00016767,2]
[366120624,1750073475791,-1271.68,0.00016767,2]
[366120625,1750073475800,-1211.691474,0.00016767,2]
[366120626,1750073475810,-618.0628123,0.00016767,2]
[366120627,1750073475827,-1214.7871877,0.00016767,2]
[366120628,1750073475836,-490.0,0.00016767,2]
[366120629,1750073475845,-557.89,0.00016767,2]
[366120630,1750073475854,-5580.0,0.00016767,2]
[366120631,1750073475863,-2328.58,0.00016767,2]
[366120632,1750073475872,-490.0,0.00016767,2]
[366120633,1750073475881,-734.34,0.00016767,2]
[366120634,1750073475890,-3033.48,0.00016767,2]
[366120635,1750073475899,-1205.11,0.00016767,2]
[366120636,1750073475908,-1711.41,0.00016767,2]
[366120637,1750073475918,-490.0,0.00016767,2]
[366120638,1750073475928,-985.58,0.00016767,2]
[366120639,1750073475937,-490.0,0.00016767,2]
[366120640,1750073475946,-882.17,0.00016767,2]
[366120641,1750073475957,-20251.09,0.00016767,2]
[366120642,1750073475966,-1632.41,0.00016767,2]
[366120643,1750073475975,-1475.26,0.00016767,2]
[366120644,1750073475984,-704.67,0.00016767,2]
[366120645,1750073475992,-490.0,0.00016767,2]
[366120646,1750073476001,-1031.3,0.00016767,2]
[366120647,1750073476010,-3493.3,0.00016767,2]
[366120648,1750073476020,-649.56,0.00016767,2]
[366120649,1750073476029,-853.99,0.00016767,2]
[366120650,1750073476038,-3168.13,0.00016767,2]
[366120651,1750073476047,-524.35,0.00016767,2]
[366120652,1750073476057,-625.31,0.00016767,2]
[366120653,1750073476066,-1016.98,0.00016767,2]
[366120654,1750073476075,-694.27,0.00016767,2]
[366120655,1750073476084,-1477.42,0.00016767,2]
[366120656,1750073476093,-6366.9,0.00016767,2]
[366120657,1750073476103,-1844.62,0.00016767,2]
[366120658,1750073476112,-490.0,0.00016767,2]
[366120659,1750073476122,-2581.49,0.00016767,2]
[366120660,1750073476131,-490.0,0.00016767,2]
[366120661,1750073476140,-490.0,0.00016767,2]
[366120662,1750073476150,-1083.74,0.00016767,2]
[366120663,1750073476159,-490.0,0.00016767,2]
[366120664,1750073476171,-490.0,0.00016767,2]
[366120665,1750073476181,-545.1,0.00016767,2]
[366120666,1750073476190,-1359.71,0.00016767,2]
[366120667,1750073476200,-218.553934,0.00016767,2]
[366120668,1750073476209,-218.553934,0.00016767,2]
[366120669,1750073476219,-3042.71,0.00016767,2]
[366120670,1750073476228,-490.0,0.00016767,2]
[366120671,1750073476237,-1052.61,0.00016767,2]
[366120672,1750073476246,-952.95,0.00016767,2]
[366120673,1750073476256,-218.553934,0.00016767,2]
[366120674,1750073476265,-218.553928,0.00016767,2]
[366120675,1750073476275,-1609.79,0.00016767,2]
[366120676,1750073476284,-490.0,0.00016767,2]
[366120677,1750073476293,-490.0,0.00016767,2]
[366120678,1750073476303,-678.55,0.00016767,2]
[366120679,1750073476312,-490.0,0.00016767,2]
[366120680,1750073476322,-705.81,0.00016767,2]
[366120681,1750073476334,-490.0,0.00016767,2]
[366120682,1750073476344,-1042.74,0.00016767,2]
[366120683,1750073476353,-490.0,0.00016767,2]
[366120684,1750073476362,-490.0,0.00016767,2]
[366120685,1750073476371,-482.37981711,0.00016767,2]
[366120686,1750073476382,-490.0,0.00016767,2]
[366120687,1750073476392,-300.0,0.00016767,2]
[366120688,1750073476402,-3014.3,0.00016767,2]
[366120689,1750073476412,-1111.59,0.00016767,2]
[366120690,1750073476423,-1992.66,0.00016767,2]
[366120691,1750073476432,-490.0,0.00016767,2]
[366120692,1750073476441,-490.0,0.00016767,2]
[366120693,1750073476450,-490.0,0.00016767,2]
[366120694,1750073476460,-490.0,0.00016767,2]
[366120695,1750073476470,-655.03,0.00016767,2]
[366120696,1750073476479,-1446.38,0.00016767,2]
[366120697,1750073476488,-2687.41,0.00016767,2]
[366120698,1750073476499,-490.0,0.00016767,2]
[366120699,1750073476508,-3180.23,0.00016767,2]
[366120700,1750073476518,-490.0,0.00016767,2]
[366120701,1750073476527,-643.76,0.00016767,2]
[366120702,1750073476535,-430.59254269,0.00016767,2]
[366120703,1750073476548,-470.29923134,0.00016767,2]
[366120704,1750073476605,-2195.44822597,0.00016767,2]
[366120705,1750073476619,-923.8845351,0.00016767,2]
[366120706,1750073476630,-1351.8754649,0.00016767,2]
[366120707,1750073476640,-977.89,0.00016767,2]
[366120708,1750073476651,-862.07,0.00016767,2]
[366120709,1750073476660,-490.0,0.00016767,2]
[366120710,1750073476671,-490.0,0.00016767,2]
[366120711,1750073476680,-490.0,0.00016767,2]
[366120712,1750073476689,-1345.36,0.00016767,2]
[366120713,1750073476698,-490.0,0.00016767,2]
[366120714,1750073476707,-200.0,0.00016767,2]
[366120715,1750073476717,-171.0,0.00016767,2]
[366120716,1750073476726,-500.82280962,0.0001677,2]
[366120717,1750073476735,-1001.3699622,0.0001677,2]
[366120718,1750073476744,-500.0,0.0001677,2]
[366120719,1750073476757,-1000.0,0.0001677,2]
[366120720,1750073476767,-200.0,0.00016771,2]
[366120721,1750073476776,-200.0,0.00016771,2]
[366120722,1750073476785,-200.0,0.00016773,2]
[366120723,1750073476794,-291.25103514,0.00016774,2]
[366120724,1750073476804,-171.0,0.00016774,2]
[366120725,1750073476813,-200.0,0.00016775,2]
[366120726,1750073476823,-200.0,0.00016777,2]
[366120727,1750073476832,-200.0,0.00016777,2]
[366120728,1750073476841,-200.0,0.00016777,2]
[366120729,1750073476851,-200.0,0.00016779,2]
[366120730,1750073476861,-200.0,0.00016779,2]
[366120731,1750073476870,-291.25103514,0.0001678,2]
[366120732,1750073476879,-200.0,0.00016781,2]
[366120733,1750073476889,-200.0,0.00016782,2]
[366120734,1750073476899,-200.0,0.00016783,2]
[366120735,1750073476908,-200.0,0.00016784,2]
[366120736,1750073476917,-200.0,0.00016785,2]
[366120737,1750073476928,-12006.46478107,0.00016785,2]
[366120738,1750073476937,-200.0,0.00016785,2]
[366120739,1750073476947,-200.0,0.00016785,2]
[366120740,1750073476956,-200.0,0.00016787,2]
[366120741,1750073476965,-200.0,0.0001679,2]
[366120742,1750073476974,-200.0,0.0001679,2]
[366120743,1750073476984,-200.0,0.0001679,2]
[366120744,1750073476993,-200.0,0.00016791,2]
[366120745,1750073477002,-200.0,0.00016792,2]
[366120746,1750073477012,-200.0,0.00016793,2]
[366120747,1750073477021,-200.0,0.00016793,2]
[366120748,1750073477030,-200.0,0.00016794,2]
[366120749,1750073477039,-200.0,0.00016794,2]
[366120750,1750073477048,-200.0,0.00016795,2]
[366120751,1750073477058,-200.0,0.00016795,2]
[366120752,1750073477067,-200.0,0.00016795,2]
[366120753,1750073477076,-826.64613972,0.00016797,2]
[366120754,1750073477086,-200.0,0.00016798,2]
[366120755,1750073477095,-200.0,0.00016798,2]
[366120756,1750073477106,-200.0,0.00016799,2]
[366120757,1750073477116,-2704.21637571,0.000168,2]
[366120758,1750073477126,-15005.7,0.000168,2]
[366120759,1750073477135,-200.0,0.000168,2]
[366120760,1750073477145,-200.0,0.000168,2]
[366120761,1750073477154,-12006.46478107,0.00016801,2]
[366120762,1750073477164,-200.0,0.00016801,2]
[366120763,1750073477175,-731.13730128,0.00016801,2]
[366120764,1750073477184,-393.51812498,0.00016802,2]
[366120765,1750073477194,-200.0,0.00016804,2]
[366120766,1750073477203,-200.0,0.00016805,2]
[366120767,1750073477212,-200.0,0.00016806,2]
[366120768,1750073477221,-3392.26268204,0.00016806,2]
[366120769,1750073477231,-200.0,0.00016808,2]
[366120770,1750073477241,-291.25103514,0.00016808,2]
[366120771,1750073477251,-200.0,0.00016808,2]
[366120772,1750073477261,-200.0,0.0001681,2]
[366120773,1750073477271,-200.0,0.00016811,2]
[366120774,1750073477281,-200.0,0.00016811,2]
[366120775,1750073477291,-200.0,0.00016813,2]
[366120776,1750073477301,-200.0,0.00016813,2]
[366120777,1750073477311,-200.0,0.00016814,2]
[366120778,1750073477320,-3392.26268204,0.00016815,2]
[366120779,1750073477331,-393.51812498,0.00016816,2]
[366120780,1750073477341,-200.0,0.00016816,2]
[366120781,1750073477350,-291.25103514,0.00016816,2]
[366120782,1750073477359,-200.0,0.00016816,2]
[366120783,1750073477368,-291.25103514,0.00016817,2]
[366120784,1750073477378,-200.0,0.00016817,2]
[366120785,1750073477388,-200.0,0.00016818,2]
[366120786,1750073477398,-393.51812498,0.00016819,2]
[366120787,1750073477409,-731.13730128,0.00016819,2]
[366120788,1750073477419,-291.25103514,0.0001682,2]
[366120789,1750073477429,-200.0,0.00016822,2]
[366120790,1750073477439,-200.0,0.00016822,2]
[366120791,1750073477448,-200.0,0.00016823,2]
[366120792,1750073477457,-731.13730128,0.00016823,2]
[366120793,1750073477466,-200.0,0.00016824,2]
[366120794,1750073477476,-3392.26268204,0.00016824,2]
[366120795,1750073477485,-150.0,0.00016825,2]
[366120796,1750073477495,-200.0,0.00016826,2]
[366120797,1750073477505,-200.0,0.00016827,2]
[366120798,1750073477515,-300.0,0.00016829,2]
[366120799,1750073477525,-291.25103514,0.00016829,2]